bitfinex/quotes_ETHUSD_20250808
["timestamp","ask_amount","ask_price","bid_price","bid_amount"]
[1754656826465,6.53889694,3903.6,3903.5,0.6064]
[1754656826667,6.53889694,3903.6,3903.5,0.129]
[1754656827995,6.53889694,3903.6,3903.5,0.6064]
[1754656828399,6.53889694,3903.6,3903.5,1.0451]
[1754656828598,2.64189694,3903.6,3903.5,1.0451]
[1754656828800,6.53789694,3903.6,3903.5,1.0451]
[1754656828995,3.97615906,3903.6,3903.5,1.0451]
[1754656829992,6.53789694,3903.6,3903.5,1.0451]
[1754656830793,2.64189694,3903.6,3903.5,1.0451]
[1754656830991,6.53789694,3903.6,3903.5,1.0451]
[1754656832091,6.53789694,3903.6,3903.5,0.6064]
[1754656832092,3.97615906,3903.6,3903.5,0.6064]
[1754656832426,3.97615906,3903.6,3903.5,1.0451]
[1754656832722,0.08015906,3903.6,3903.5,1.0451]
[1754656832922,3.97615906,3903.6,3903.5,1.0451]
[1754656833353,0.08015906,3903.6,3903.5,1.0451]
[1754656833532,3.97615906,3903.6,3903.5,1.0451]
[1754656833713,3.97615906,3903.6,3903.5,0.129]
[1754656834231,6.53789694,3903.6,3903.5,0.6064]
[1754656834530,3.97615906,3903.6,3903.5,1.0451]
[1754656834729,3.896,3903.6,3903.5,1.0451]
[1754656834890,3.896,3903.6,3903.5,3.6069035]
[1754656834891,0.08015418,3903.6,3903.5,3.6069035]
[1754656835092,3.97615418,3903.6,3903.5,4.22388517]
[1754656835407,4.17615418,3903.6,3903.5,4.22388517]
[1754656835591,4.096,3903.6,3903.5,4.22388517]
[1754656835796,0.2,3903.6,3903.5,4.22388517]
[1754656836129,4.096,3903.6,3903.5,4.22388517]
[1754656837338,0.2,3903.6,3903.5,4.2495032]
[1754656837501,4.096,3903.6,3903.5,4.22388517]
[1754656837833,0.2,3903.6,3903.5,4.22388517]
[1754656838033,4.096,3903.6,3903.5,4.22388517]
[1754656838335,2.3865625,3903.6,3903.5,4.22388517]
[1754656839706,2.3865625,3903.6,3903.5,0.74598167]
[1754656840012,2.3865625,3903.6,3903.5,3.78518517]
[1754656840619,2.3865625,3903.6,3903.5,4.22388517]
[1754656843008,3.896,3903.6,3903.5,1.66208167]
[1754656843206,3.896,3903.6,3903.5,3.6069035]
[1754656843720,0.002,3904.1,3903.7,2.56167225]
[1754656844047,0.002,3904.1,3903.5,0.001]
[1754656844048,3.896,3904.0,3903.5,0.001]
[1754656844219,2.56173788,3903.6,3903.5,0.001]
[1754656844420,6.45773788,3903.6,3903.5,0.129]
[1754656844605,7.35663788,3903.6,3903.5,0.129]
[1754656845608,7.35663788,3903.6,3903.5,0.001]
[1754656853462,17.57060701,3903.6,3903.5,0.001]
[1754656854266,17.67327601,3903.6,3903.5,0.001]
[1754656855552,8.59193256,3903.6,3903.5,0.001]
[1754656856834,12.14193256,3903.6,3903.5,0.001]
[1754656860320,5.79240688,3903.6,3903.5,0.001]
[1754656860631,6.68840688,3903.6,3903.5,0.001]
[1754656860868,4.126669,3903.6,3903.5,0.001]
[1754656861158,4.126669,3903.6,3903.5,0.4829]
[1754656861337,4.024,3903.6,3903.5,0.4829]
[1754656861532,0.128,3903.6,3903.5,0.4829]
[1754656861734,3.896,3903.6,3903.5,0.9287]
[1754656862060,3.896,3903.6,3903.5,1.27785951]
[1754656862461,3.896,3903.6,3903.5,3.83966301]
[1754656862964,3.896,3903.6,3903.5,1.27785951]
[1754656864251,3.896,3903.6,3903.5,3.83966301]
[1754656865236,3.898,3903.6,3903.5,3.83966301]
[1754656871765,0.002,3903.6,3903.5,3.83966301]
[1754656872168,3.897,3903.6,3903.5,3.83966301]
[1754656872364,0.002,3903.6,3903.5,3.83966301]
[1754656872563,3.897,3903.6,3903.5,3.96766301]
[1754656874541,0.002,3903.6,3903.5,3.96766301]
[1754656877157,3.897,3903.6,3903.5,3.96766301]
[1754656877677,3.897,3903.6,3903.5,8.25766301]
[1754656877994,0.002,3903.6,3903.5,8.25766301]
[1754656878199,0.002,3904.0,3903.9,2.56154102]
[1754656878421,0.002,3904.0,3903.9,3.48364615]
[1754656878695,0.002,3904.0,3903.9,4.38573074]
[1754656880489,0.002,3904.0,3903.9,7.38573074]
[1754656882509,0.002,3904.1,3904.0,5.5614754]
[1754656882715,0.002,3904.2,3904.1,5.56140979]
[1754656882871,0.002,3904.6,3904.3,14.64262204]
[1754656883301,0.002,3904.6,3904.3,15.69832204]
[1754656885606,0.002,3904.6,3904.3,15.57032204]
[1754656885772,0.002,3904.6,3904.3,15.69832204]
[1754656890508,1e-08,3904.4,3904.3,16.24832204]
[1754656890710,1e-08,3904.4,3904.3,16.59748155]
[1754656890893,1e-08,3904.4,3904.3,16.70006855]
[1754656895610,0.002,3904.6,3904.4,7.40121298]
[1754656895811,0.002,3904.6,3904.5,5.56114739]
[1754656896127,0.002,3904.6,3904.5,6.59524739]
[1754656896332,0.002,3904.6,3904.5,7.36373711]
[1754656896616,0.002,3904.6,3904.5,12.2037371]
[1754656897216,0.002,3904.6,3904.5,12.3063191]
[1754656897415,0.002,3904.6,3904.5,12.2037371]
[1754656899518,0.002,3904.6,3904.5,24.27198055]
[1754656899722,0.002,3904.6,3904.5,25.17808055]
[1754656902330,0.4369,3905.3,3905.1,2.56075388]
[1754656902532,0.4369,3905.3,3905.2,4.28999999]
[1754656902825,0.4369,3905.3,3905.2,6.9786883]
[1754656904325,0.8603,3905.3,3905.2,6.9786883]
[1754656904509,0.4369,3905.3,3905.2,6.9786883]
[1754656904822,0.4369,3905.3,3905.2,7.32784781]
[1754656905822,0.002,3905.3,3905.2,3.51614782]
[1754656905995,0.4369,3905.7,3905.3,2.56062274]
[1754656906325,0.4369,3905.7,3905.3,15.12026619]
[1754656906923,0.002,3905.7,3905.3,15.12026619]
[1754656907124,0.002,3905.7,3905.3,15.54806619]
[1754656907342,0.002,3905.7,3905.3,16.31655591]
[1754656907848,0.002,3905.7,3905.3,16.44455591]
[1754656913452,0.4369,3906.1,3906.0,2.56016385]
[1754656913819,0.4369,3906.1,3906.0,2.68816385]
[1754656914533,0.8603,3906.1,3906.0,2.68816385]
[1754656917266,0.4369,3906.1,3906.0,2.68816385]
[1754656917419,0.4369,3906.1,3906.0,4.16774993]
[1754656917750,0.002,3906.1,3906.0,4.16774993]
[1754656918323,0.002,3906.1,3906.0,4.63384993]
[1754656920471,0.002,3906.1,3906.0,4.16774993]
[1754656920670,0.4489,3906.1,3906.0,4.16774993]
[1754656922370,0.002,3906.1,3906.0,4.16774993]
[1754656923086,0.002,3906.1,3906.0,4.63384993]
[1754656924552,0.4489,3906.1,3906.0,4.16774993]
[1754656925169,0.4489,3906.1,3906.0,2.68816385]
[1754656925377,0.8723,3906.1,3906.0,2.68816385]
[1754656927174,0.4489,3906.1,3906.0,2.68816385]
[1754656931478,0.4489,3906.1,3906.0,0.128]
[1754656931781,0.8723,3906.1,3906.0,0.128]
[1754656932785,0.4489,3906.1,3906.0,2.68816385]
[1754656937585,0.002,3906.1,3906.0,2.68816385]
[1754656937789,0.8723,3906.1,3906.0,0.128]
[1754656938094,3.9087283,3906.1,3906.0,0.128]
[1754656938265,3.90874105,3906.1,3905.8,0.128]
[1754656938451,0.8703,3906.0,3905.8,0.128]
[1754656938649,3.891,3905.9,3905.8,0.128]
[1754656938888,4.7613,3905.9,3905.8,0.128]
[1754656939601,7.32152939,3905.9,3905.8,0.128]
[1754656939972,8.3575257,3905.9,3905.8,0.128]
[1754656940491,8.4841257,3905.9,3905.8,0.128]
[1754656940675,0.55,3905.8,3905.1,0.001]
[1754656940875,2.56042741,3905.6,3905.1,0.001]
[1754656941055,0.9969,3905.8,3905.1,0.001]
[1754656941255,0.8703,3905.5,3905.1,0.001]
[1754656941467,3.891,3905.4,3905.1,0.001]
[1754656941669,6.89851196,3905.4,3905.1,0.001]
[1754656941871,6.45161196,3905.4,3905.1,0.001]
[1754656942059,0.4469,3905.3,3905.1,0.001]
[1754656942375,3.00752571,3905.3,3905.1,0.001]
[1754656942693,0.4469,3905.2,3905.1,0.001]
[1754656942985,0.4469,3905.3,3905.1,0.001]
[1754656946013,3.891,3905.4,3905.2,3.04198831]
[1754656946180,3.891,3905.4,3905.2,1.94990834]
[1754656946379,3.891,3905.4,3905.1,0.001]
[1754656946380,0.4399,3905.3,3905.1,0.001]
[1754656947096,3.891,3905.4,3905.1,0.4823]
[1754656947391,4.3309,3905.4,3905.2,2.56068831]
[1754656948092,4.3309,3905.4,3905.3,2.56062274]
[1754656948590,4.3309,3905.4,3905.3,3.51371312]
[1754656948591,3.891,3905.4,3905.3,3.51371312]
[1754656948793,3.891,3905.4,3905.3,5.02948888]
[1754656950598,3.891,3905.4,3905.3,5.15748888]
[1754656951482,3.891,3905.4,3905.3,3.16991312]
[1754656952083,3.891,3905.4,3905.3,3.17091312]
[1754656953522,3.891,3905.4,3905.3,3.64271312]
[1754656955602,3.891,3905.6,3905.4,2.56052711]
[1754656955901,3.891,3905.6,3905.5,0.4813]
[1754656956269,3.891,3905.6,3905.5,3.40605432]
[1754656956672,3.891,3905.6,3905.5,3.53405432]
[1754656957911,3.891,3905.6,3905.5,3.05275432]
[1754656960413,3.891,3905.6,3905.5,3.53405432]
[1754656968812,0.4399,3905.9,3905.5,0.97356271]
[1754656968993,0.4234,3906.0,3905.5,3.16979161]
[1754656968994,3.89,3905.6,3905.5,3.16979161]
[1754656969200,3.89,3905.6,3905.5,3.04179161]
[1754656969516,3.89,3905.6,3905.5,3.16979161]
[1754656970384,3.89,3905.6,3905.5,2.68849161]
[1754656970707,4.3299,3905.6,3905.5,2.68849161]
[1754656971412,3.89,3905.6,3905.5,3.16979161]
[1754656972015,3.89,3905.6,3905.5,2.68849161]
[1754656972203,4.3299,3905.6,3905.5,2.68849161]
[1754656972727,3.89,3905.6,3905.5,3.16979161]
[1754656973684,3.89,3905.6,3905.5,3.17079161]
[1754656976335,3.89,3905.6,3905.5,5.1660826]
[1754656976486,3.89,3905.6,3905.5,4.6988826]
[1754656978030,3.89,3905.6,3905.5,3.17079161]
[1754656978729,0.464,3906.0,3905.7,2.56033992]
[1754656978885,3.89,3905.9,3905.7,2.56033992]
[1754656979223,4.352,3905.9,3905.7,2.56033992]
[1754656979421,4.352,3905.9,3905.8,2.56029494]
[1754656979601,4.352,3905.9,3905.8,2.68829494]
[1754656980432,3.89,3905.9,3905.8,2.68829494]
[1754656980633,3.89,3905.9,3905.8,3.17689494]
[1754656980833,3.89,3905.9,3905.8,2.68829494]
[1754656981038,0.462,3905.9,3905.8,2.68829494]
[1754656981242,4.352,3905.9,3905.8,2.68829494]
[1754656982343,0.462,3905.9,3905.8,2.68829494]
[1754656982547,3.89,3905.9,3905.8,2.68829494]
[1754656983576,3.89,3905.9,3905.8,3.17689494]
[1754656984249,0.002,3906.0,3905.9,2.56022939]
[1754656984411,3.892,3906.0,3905.9,2.58583168]
[1754656984608,0.002,3906.1,3906.0,2.56016385]
[1754656984861,0.002,3906.1,3906.0,3.64396385]
[1754656985040,0.002,3906.1,3906.0,5.82253551]
[1754656986550,0.002,3906.1,3906.0,3.64396385]
[1754656994263,0.002,3906.1,3906.0,6.64396385]
[1754656995848,0.002,3906.1,3906.0,10.93396384]
[1754656996746,0.002,3906.1,3906.0,14.82196384]
[1754656997268,0.002,3906.1,3906.0,10.93396384]
[1754657002950,0.8874,3906.1,3906.0,0.128]
[1754657003398,0.8874,3906.1,3906.0,2.68816385]
[1754657003687,0.464,3906.1,3906.0,2.68816385]
[1754657004187,0.8874,3906.1,3906.0,0.128]
[1754657004353,0.8874,3906.1,3906.0,2.68816385]
[1754657005185,0.8874,3906.1,3906.0,0.128]
[1754657005850,0.8874,3906.1,3906.0,2.68816385]
[1754657006687,0.8874,3906.1,3906.0,0.128]
[1754657009786,0.8874,3906.1,3906.0,2.68816385]
[1754657011104,0.464,3906.1,3906.0,2.68816385]
[1754657011988,0.8874,3906.1,3906.0,0.128]
[1754657012189,0.8874,3906.1,3906.0,2.68816385]
[1754657012891,0.464,3906.1,3906.0,2.68816385]
[1754657013689,0.002,3906.5,3906.4,2.55990169]
[1754657013889,0.002,3906.5,3906.0,4.0553]
[1754657013890,0.4747,3906.4,3906.0,3.128]
[1754657014091,0.8981,3906.4,3906.0,5.56010417]
[1754657014392,0.4234,3906.4,3906.3,0.128]
[1754657014605,0.4234,3906.4,3906.3,2.68796723]
[1754657014785,0.4747,3906.4,3906.3,2.68796723]
[1754657019025,0.002,3906.5,3906.4,2.55990169]
[1754657019228,0.002,3906.5,3906.4,3.05250169]
[1754657019410,0.002,3906.5,3906.4,3.48720169]
[1754657019897,0.002,3906.5,3906.4,0.9273]
[1754657020098,0.002,3906.5,3906.4,0.4926]
[1754657022724,0.002,3906.5,3906.4,3.05250169]
[1754657023529,0.042,3906.9,3906.8,5.5596396]
[1754657023729,0.042,3906.9,3906.8,14.64098305]
[1754657023942,0.042,3906.9,3906.8,15.56828305]
[1754657025919,1e-08,3906.9,3906.8,15.56828305]
[1754657030923,1e-08,3906.9,3906.8,19.46028305]
[1754657031130,1e-08,3906.9,3906.8,21.5951635]
[1754657032138,1e-08,3906.9,3906.8,11.58552005]
[1754657032734,1e-08,3906.9,3906.8,12.07812005]
[1754657033747,1e-08,3906.9,3906.8,12.51282005]
[1754657034044,1e-08,3906.9,3906.8,12.64082005]
[1754657034738,1e-08,3906.9,3906.8,21.7221635]
[1754657036604,1e-08,3906.9,3906.8,12.64082005]
[1754657037040,1e-08,3906.9,3906.8,8.31512005]
[1754657037343,1e-08,3906.9,3906.4,6.45090169]
[1754657037344,0.45770001,3906.9,3906.4,3.891]
[1754657037503,0.4577,3906.8,3906.4,3.891]
[1754657037705,0.4577,3906.7,3906.4,6.45089083]
[1754657037942,0.4577,3906.7,3906.6,2.55970785]
[1754657038440,0.4577,3906.7,3906.6,3.93911772]
[1754657038641,0.4577,3906.7,3906.6,8.22911771]
[1754657038939,0.4577,3906.7,3906.6,1.37940987]
[1754657039949,1e-08,3906.9,3906.6,1.37940987]
[1754657039950,1e-08,3906.9,3906.6,3.93918051]
[1754657040250,0.4577,3906.8,3906.4,0.001]
[1754657040453,0.8831,3906.8,3906.4,0.001]
[1754657040852,0.8831,3906.7,3906.4,0.001]
[1754657041052,2.55983617,3906.5,3906.4,0.001]
[1754657041218,3.16266043,3906.5,3906.4,0.001]
[1754657041524,1.48592426,3906.5,3906.4,0.001]
[1754657042252,0.8831,3906.5,3906.4,0.001]
[1754657042457,0.102571,3906.8,3906.4,0.001]
[1754657042657,0.4577,3906.8,3906.4,0.001]
[1754657042957,0.4577,3906.7,3906.4,0.001]
[1754657043124,0.4577,3906.7,3906.4,2.56088707]
[1754657043318,0.42740001,3906.9,3906.4,0.001]
[1754657043551,0.4577,3906.6,3906.4,0.001]
[1754657043916,0.4577,3906.5,3906.4,0.001]
[1754657044357,0.4577,3906.5,3906.4,2.56090169]
[1754657044670,0.4577,3906.8,3906.5,2.55983322]
[1754657045019,0.00200001,3906.9,3906.5,3.0533207]
[1754657045425,0.45970001,3906.9,3906.6,2.55975847]
[1754657045627,0.45970001,3906.9,3906.5,0.4935]
[1754657045954,0.4577,3906.8,3906.4,2.56088744]
[1754657046257,0.4577,3906.7,3906.5,2.5598301]
[1754657046422,0.4577,3906.7,3906.6,2.55977064]
[1754657046618,0.4577,3906.7,3906.4,0.001]
[1754657046822,0.00200001,3906.9,3906.4,2.56089597]
[1754657047024,0.00200001,3906.9,3906.7,2.55965581]
[1754657047279,0.00200001,3906.9,3906.8,2.5596396]
[1754657047570,0.00200001,3906.9,3906.8,0.6215]
[1754657048265,0.00200001,3906.9,3906.8,0.128]
[1754657048585,0.45970001,3906.9,3906.8,0.128]
[1754657048731,0.88510001,3906.9,3906.8,0.128]
[1754657048931,3.44467409,3906.9,3906.8,0.128]
[1754657049262,3.44467409,3906.9,3906.4,0.001]
[1754657049263,2.55965734,3906.8,3906.4,0.001]
[1754657049568,3.9205756,3906.7,3906.5,0.128]
[1754657049748,4.8036756,3906.7,3906.5,0.128]
[1754657049952,3.9205756,3906.7,3906.5,0.128]
[1754657050160,0.8831,3906.6,3906.5,0.128]
[1754657053939,0.4577,3906.6,3906.5,0.128]
[1754657054762,0.4577,3906.6,3906.5,2.68783617]
[1754657054971,0.4577,3906.6,3906.5,0.128]
[1754657056049,0.4577,3906.6,3906.5,2.68783617]
[1754657056231,0.4577,3906.6,3906.5,0.128]
[1754657057066,0.4577,3906.6,3906.5,2.68783617]
[1754657057583,4.3507,3906.6,3906.5,2.68783617]
[1754657058159,0.60516384,3906.9,3906.6,2.55972594]
[1754657058160,0.00200001,3906.9,3906.6,2.55972594]
[1754657058359,3.893,3906.8,3906.4,2.56084102]
[1754657058562,0.4577,3906.7,3906.5,2.55981998]
[1754657058934,0.4577,3906.7,3906.6,0.128]
[1754657061370,3.893,3906.8,3906.6,0.128]
[1754657061669,3.893,3906.8,3906.7,2.55970512]
[1754657061830,3.893,3906.8,3906.6,3.18124878]
[1754657062482,0.45970001,3906.9,3906.6,3.18124878]
[1754657062667,3.891,3906.7,3906.6,3.05324878]
[1754657062881,3.891,3906.7,3906.6,3.18124878]
[1754657063069,3.891,3906.7,3906.6,0.6215]
[1754657063254,3.891,3906.7,3906.6,0.128]
[1754657063577,3.891,3906.7,3906.6,2.68777064]
[1754657063776,3.891,3906.7,3906.6,3.18127064]
[1754657064156,3.891,3906.7,3906.6,0.6215]
[1754657064367,5.1509,3906.7,3906.5,0.001]
[1754657064555,3.45594624,3906.6,3906.5,0.129]
[1754657064961,4.13394624,3906.6,3906.5,0.001]
[1754657065558,7.13394624,3906.6,3906.5,0.001]
[1754657065795,9.58699154,3906.6,3906.5,0.001]
[1754657066680,9.44317659,3906.6,3906.5,0.001]
[1754657073291,9.54577459,3906.6,3906.5,0.001]
[1754657073991,9.68938681,3906.6,3906.5,0.001]
[1754657074384,9.68935095,3906.6,3906.5,0.001]
[1754657080192,9.54577459,3906.6,3906.5,0.001]
[1754657082880,9.12037459,3906.6,3906.5,0.001]
[1754657083565,9.68926342,3906.6,3906.5,0.001]
[1754657085008,9.26386342,3906.6,3906.5,0.001]
[1754657085197,9.68926342,3906.6,3906.5,0.001]
[1754657085603,9.26386342,3906.6,3906.5,0.001]
[1754657088277,9.68926342,3906.6,3906.5,0.001]
[1754657090553,15.41586342,3906.6,3906.5,0.001]
[1754657090706,24.05200687,3906.6,3906.5,0.001]
[1754657091741,14.97066342,3906.6,3906.5,0.001]
[1754657091940,18.71717459,3906.6,3906.5,0.4757]
[1754657092238,18.61457659,3906.6,3906.5,0.4757]
[1754657093302,18.75843861,3906.6,3906.5,0.4757]
[1754657093943,18.75843861,3906.6,3906.5,0.9328]
[1754657094145,18.61457659,3906.6,3906.5,0.9328]
[1754657094448,18.75857881,3906.6,3906.5,0.9328]
[1754657096520,18.7585645,3906.6,3906.5,0.9328]
[1754657098253,18.61457659,3906.6,3906.5,0.9328]
[1754657098559,18.75854872,3906.6,3906.5,0.9328]
[1754657098716,18.75854872,3906.6,3906.5,0.4757]
[1754657100548,19.22784872,3906.6,3906.5,0.001]
[1754657102144,19.65324872,3906.6,3906.5,0.001]
[1754657102315,19.65324872,3906.6,3906.0,0.001]
[1754657102316,0.55,3906.1,3906.0,0.001]
[1754657102520,3.11022939,3905.9,3905.5,0.001]
[1754657102851,19.22454497,3905.9,3905.5,0.001]
[1754657103158,6.11029494,3905.8,3905.7,1e-08]
[1754657103332,6.11029494,3905.8,3905.4,0.001]
[1754657103333,0.55,3905.7,3905.4,0.001]
[1754657103528,15.19183506,3905.5,3905.4,0.001]
[1754657103836,15.19183506,3905.5,3905.1,0.001]
[1754657103837,0.55,3905.3,3905.1,0.001]
[1754657104040,7.16917047,3905.3,3905.1,0.001]
[1754657104250,9.33685875,3905.3,3905.1,0.001]
[1754657104844,0.55,3905.1,3904.9,1e-08]
[1754657105056,0.55,3905.1,3904.6,0.001]
[1754657105057,3.11101621,3904.7,3904.6,0.001]
[1754657105353,25.38793526,3904.7,3904.6,1e-08]
[1754657105551,25.36235966,3904.7,3904.6,1e-08]
[1754657105846,27.84092863,3904.7,3904.6,1e-08]
[1754657106051,27.69716561,3904.7,3904.6,1e-08]
[1754657106220,27.69716561,3904.7,3904.6,0.47370001]
[1754657106420,27.69716561,3904.7,3904.6,0.90180001]
[1754657107272,27.69716561,3904.7,3904.6,1e-08]
[1754657107584,28.59186561,3904.7,3904.6,1e-08]
[1754657107865,28.16646561,3904.7,3904.6,1e-08]
[1754657109321,27.69716561,3904.7,3904.6,1e-08]
[1754657109762,27.79982161,3904.7,3904.6,1e-08]
[1754657109937,27.99583577,3904.7,3904.6,1e-08]
[1754657110133,27.79982161,3904.7,3904.6,0.47370001]
[1754657110537,27.79982161,3904.7,3904.6,0.90180001]
[1754657110732,25.46501566,3904.7,3904.6,0.90180001]
[1754657111028,22.80134345,3904.7,3904.6,0.90180001]
[1754657111402,25.36235966,3904.7,3904.6,0.90180001]
[1754657113645,13.72,3904.7,3904.6,0.90180001]
[1754657114150,13.592,3904.7,3904.6,0.90180001]
[1754657114660,16.15301621,3904.7,3904.6,0.90180001]
[1754657114863,25.23435966,3904.7,3904.6,0.47370001]
[1754657115029,27.78964975,3904.7,3904.6,1e-08]
[1754657115433,25.22863354,3904.7,3904.6,0.47370001]
[1754657115758,25.22863354,3904.7,3904.6,0.90180001]
[1754657116254,13.592,3904.7,3904.6,0.90180001]
[1754657116565,13.593,3904.7,3904.6,0.90180001]
[1754657117029,10.593,3904.7,3904.6,0.90180001]
[1754657119235,6.152,3904.7,3904.6,0.90180001]
[1754657119564,10.593,3904.7,3904.6,0.90180001]
[1754657120739,10.593,3904.7,3904.6,3.46288181]
[1754657120952,10.593,3904.7,3904.6,0.90180001]
[1754657121472,10.593,3904.7,3904.6,1e-08]
[1754657121671,22.23535966,3904.7,3904.6,0.47370001]
[1754657121985,28.49438912,3904.7,3904.6,1e-08]
[1754657124245,28.59705312,3904.7,3904.6,1e-08]
[1754657124470,6.1110818,3904.6,3904.5,1e-08]
[1754657124665,6.9817818,3904.6,3904.5,1e-08]
[1754657124870,9.53707189,3904.6,3904.5,1e-08]
[1754657125582,9.63973589,3904.6,3904.5,1e-08]
[1754657126748,9.21433589,3904.6,3904.5,1e-08]
[1754657126978,9.63973589,3904.6,3904.5,1e-08]
[1754657128080,6.11114739,3904.5,3904.4,1e-08]
[1754657128281,6.11114739,3904.5,3904.1,0.041]
[1754657128282,3.11134419,3904.2,3904.1,0.041]
[1754657128483,16.23726324,3904.2,3904.1,0.041]
[1754657128787,17.18505664,3904.2,3904.1,0.041]
[1754657129971,20.18505664,3904.2,3904.1,0.041]
[1754657130174,22.74034673,3904.2,3904.1,0.041]
[1754657130699,22.31494673,3904.2,3904.1,0.041]
[1754657131055,26.31494673,3904.2,3904.1,0.041]
[1754657131261,26.45870728,3904.2,3904.1,0.041]
[1754657131655,26.01340728,3904.2,3904.1,0.041]
[1754657131869,26.45870728,3904.2,3904.1,0.041]
[1754657132409,22.45870728,3904.2,3904.1,0.041]
[1754657135114,22.01340728,3904.2,3904.1,0.5062]
[1754657135695,22.01340728,3904.2,3904.1,0.041]
[1754657136762,22.45870728,3904.2,3904.1,0.041]
[1754657137093,22.01340728,3904.2,3904.1,0.041]
[1754657139918,5.36306383,3904.2,3904.1,0.041]
[1754657140213,6.58034419,3904.2,3904.1,0.041]
[1754657140377,7.13034419,3904.2,3904.1,0.5062]
[1754657140577,10.13034419,3904.2,3904.1,0.5062]
[1754657141435,10.13034419,3904.2,3904.1,0.9357]
[1754657141901,10.13034419,3904.2,3904.1,0.5062]
[1754657142202,10.13034419,3904.2,3904.1,0.9357]
[1754657142781,3.128,3904.2,3904.1,0.9357]
[1754657142977,3.891,3904.2,3904.1,1.0637]
[1754657143819,3.891,3904.2,3904.1,1.4263225]
[1754657144303,3.891,3904.2,3904.1,1.0637]
[1754657145477,3.9165756,3904.2,3904.1,1.0637]
[1754657146921,7.00234419,3904.2,3904.1,0.041]
[1754657147075,10.00234419,3904.2,3904.1,0.041]
[1754657147276,12.22416548,3904.2,3904.1,0.041]
[1754657147799,12.66946548,3904.2,3904.1,0.041]
[1754657148312,13.09486548,3904.2,3904.1,0.041]
[1754657149576,13.23868437,3904.2,3904.1,0.041]
[1754657150590,17.23868437,3904.2,3904.1,0.041]
[1754657151494,36.11140979,3904.1,3904.0,0.001]
[1754657151679,38.81051877,3904.1,3904.0,0.001]
[1754657151881,39.68121877,3904.1,3904.0,0.001]
[1754657152085,40.23389449,3904.1,3904.0,0.001]
[1754657152285,40.36189449,3904.1,3904.0,0.001]
[1754657152509,39.80921877,3904.1,3904.0,0.001]
[1754657153013,40.36189693,3904.1,3904.0,0.001]
[1754657153315,39.80921877,3904.1,3904.0,1e-08]
[1754657154778,10.27541877,3904.1,3904.0,1e-08]
[1754657154981,9.40471877,3904.1,3904.0,1e-08]
[1754657155424,9.87561877,3904.1,3904.0,1e-08]
[1754657155713,13.87561877,3904.1,3904.0,1e-08]
[1754657156019,14.30101877,3904.1,3904.0,1e-08]
[1754657156398,13.87561877,3904.1,3904.0,1e-08]
[1754657156791,13.40471877,3904.1,3904.0,1e-08]
[1754657157525,13.87561877,3904.1,3904.0,1e-08]
[1754657158914,3.11186913,3903.4,3903.3,0.001]
[1754657159122,7.7406296,3903.4,3903.3,0.001]
[1754657159281,7.715054,3903.4,3903.3,0.001]
[1754657159484,8.07783511,3903.4,3903.3,0.4676]
[1754657160628,8.07783511,3903.4,3903.3,0.909]
[1754657160830,7.51046913,3903.4,3903.3,0.909]
[1754657160990,10.51046913,3903.4,3903.3,0.909]
[1754657161386,6.61846913,3903.4,3903.3,0.909]
[1754657161623,10.51046913,3903.4,3903.3,0.909]
[1754657163428,1.0566,3903.4,3903.3,0.909]
[1754657163632,4.9486,3903.4,3903.3,0.909]
[1754657164123,7.51046913,3903.4,3903.3,0.909]
[1754657164608,4.9486,3903.4,3903.3,0.909]
[1754657165119,1.0566,3903.4,3903.3,0.909]
[1754657165289,0.5066,3903.4,3903.3,0.909]
[1754657165485,3.892,3903.4,3903.3,0.909]
[1754657165821,6.156,3903.7,3903.3,0.909]
[1754657165822,6.156,3903.7,3903.3,3.82203409]
[1754657166023,3.892,3903.6,3903.4,3.46986894]
[1754657166324,3.892,3903.6,3903.5,0.908]
[1754657166688,3.892,3903.6,3903.5,3.4698035]
[1754657167092,6.156,3903.7,3903.5,3.4698035]
[1754657167093,6.156,3903.7,3903.6,2.56173788]
[1754657167285,10.048,3903.7,3903.6,3.46973788]
[1754657167926,10.048,3903.7,3903.6,4.1081078]
[1754657168149,0.002,3904.3,3903.6,1.54636992]
[1754657168336,0.002,3904.3,3904.2,2.56134419]
[1754657168535,3.894,3904.3,3904.2,2.56134419]
[1754657168749,0.002,3904.3,3904.2,2.56134419]
[1754657168924,3.894,3904.3,3904.2,3.59734419]
[1754657170918,0.002,3904.3,3904.2,3.59734419]
[1754657171108,0.002,3904.3,3904.2,5.12392093]
[1754657171306,0.002,3904.3,3904.2,17.20526438]
[1754657172345,0.002,3904.5,3904.4,5.56121299]
[1754657172506,0.002,3904.7,3904.4,5.56121299]
[1754657172507,0.002,3904.7,3904.6,2.5610818]
[1754657172709,0.002,3904.7,3904.6,14.66803606]
[1754657172910,0.002,3904.7,3904.6,7.47180844]
[1754657175223,0.002,3904.7,3904.6,4.47180844]
[1754657177416,0.002,3904.7,3904.6,4.03040844]
[1754657177624,0.002,3904.7,3904.6,0.5946]
[1754657177829,0.002,3904.7,3904.6,2.6890818]
[1754657178048,0.002,3904.7,3904.6,0.128]
[1754657178253,0.002,3904.7,3904.6,0.5946]
[1754657178448,0.002,3904.7,3904.6,3.1556818]
[1754657178918,0.002,3904.7,3904.6,0.5946]
[1754657180055,0.002,3904.7,3904.6,3.1556818]
[1754657181458,0.002,3904.7,3904.6,0.5946]
[1754657181753,0.002,3904.7,3904.6,0.128]
[1754657182052,0.002,3904.7,3904.6,3.1556818]
[1754657184257,0.002,3904.7,3904.6,0.5946]